[Event "Titled Tuesday Blitz July 25 Late 2023"]
[White "Kollars, Dmitrij"]
[Black "Carlsen, Magnus"]
[WhiteFideId "12909572"]
[BlackFideId "1503014"]
[WhiteElo "2992"]
[BlackElo "3253"]
[Result "0-1"]
[Round "9"]
[TimeControl "180+2"]
[Date "2023.07.25"]
[WhiteClock "0:00:00"]
[BlackClock "0:00:12"]
[Board "5"]

1. e4 {[%clk 0:03:00]}  Nc6 {[%clk 0:03:00]} 2. Nf3 {[%clk 0:02:59]}  f5 {[%clk 0:03:00]} 3. exf5 {[%clk 0:02:58]}  d5 {[%clk 0:03:00]} 4. Bb5 {[%clk 0:02:58]}  Bxf5 {[%clk 0:03:00]} 5. Ne5 {[%clk 0:02:54]}  Qd6 {[%clk 0:02:59]} 6. d4 {[%clk 0:02:53]}  e6 {[%clk 0:02:48]} 7. O-O {[%clk 0:02:51]}  Ne7 {[%clk 0:02:35]} 8. Nc3 {[%clk 0:02:27]}  a6 {[%clk 0:02:29]} 9. Bxc6+ {[%clk 0:02:13]}  Nxc6 {[%clk 0:02:30]} 10. Bf4 {[%clk 0:02:14]}  Qb4 {[%clk 0:01:56]} 11. Nxc6 {[%clk 0:02:06]}  bxc6 {[%clk 0:01:57]} 12. Rb1 {[%clk 0:01:47]}  Bd6 {[%clk 0:01:56]} 13. a3 {[%clk 0:01:46]}  Qb8 {[%clk 0:01:54]} 14. Qh5+ {[%clk 0:01:35]}  g6 {[%clk 0:01:29]} 15. Qh6 {[%clk 0:01:33]}  Kf7 {[%clk 0:01:30]} 16. Be5 {[%clk 0:01:15]}  Qf8 {[%clk 0:01:24]} 17. Qf4 {[%clk 0:01:12]}  Bxe5 {[%clk 0:01:13]} 18. Qxe5 {[%clk 0:01:12]}  Qd6 {[%clk 0:01:13]} 19. Qe2 {[%clk 0:01:07]}  Rhe8 {[%clk 0:01:10]} 20. g4 {[%clk 0:01:04]}  e5 {[%clk 0:00:57]} 21. dxe5 {[%clk 0:00:56]}  Rxe5 {[%clk 0:00:58]} 22. Qf3 {[%clk 0:00:56]}  Qf6 {[%clk 0:00:54]} 23. gxf5 {[%clk 0:00:53]}  Rxf5 {[%clk 0:00:55]} 24. Qh3 {[%clk 0:00:49]}  Rh5 {[%clk 0:00:44]} 25. Qd7+ {[%clk 0:00:48]}  Kg8 {[%clk 0:00:44]} 26. f4 {[%clk 0:00:42]}  Qd4+ {[%clk 0:00:41]} 27. Kh1 {[%clk 0:00:38]}  Rf8 {[%clk 0:00:37]} 28. Rbe1 {[%clk 0:00:32]}  Rhf5 {[%clk 0:00:34]} 29. Qxc6 {[%clk 0:00:29]}  R8f7 {[%clk 0:00:32]} 30. Qe8+ {[%clk 0:00:29]}  Kg7 {[%clk 0:00:31]} 31. Qe6 {[%clk 0:00:25]}  Qc4 {[%clk 0:00:19]} 32. Qe2 {[%clk 0:00:17]}  Qc6 {[%clk 0:00:19]} 33. Qg2 {[%clk 0:00:17]}  Qd6 {[%clk 0:00:19]} 34. Rd1 {[%clk 0:00:16]}  c6 {[%clk 0:00:16]} 35. Ne4 {[%clk 0:00:17]}  Qd7 {[%clk 0:00:11]} 36. Ng5 {[%clk 0:00:17]}  Re7 {[%clk 0:00:12]} 37. Qd2 {[%clk 0:00:16]}  Qd6 {[%clk 0:00:11]} 38. Nh3 {[%clk 0:00:09]}  c5 {[%clk 0:00:10]} 39. Rfe1 {[%clk 0:00:10]}  d4 {[%clk 0:00:10]} 40. Rxe7+ {[%clk 0:00:09]}  Qxe7 {[%clk 0:00:11]} 41. Qe1 {[%clk 0:00:09]}  Qb7+ {[%clk 0:00:11]} 42. Kg1 {[%clk 0:00:09]}  Qxb2 {[%clk 0:00:11]} 43. Qe7+ {[%clk 0:00:09]}  Rf7 {[%clk 0:00:12]} 44. Qe5+ {[%clk 0:00:09]}  Kh6 {[%clk 0:00:09]} 45. Ng5 {[%clk 0:00:08]}  Rb7 {[%clk 0:00:05]} 46. Qe4 {[%clk 0:00:05]}  Rd7 {[%clk 0:00:02]} 47. Ne6 {[%clk 0:00:05]}  Qc3 {[%clk 0:00:02]} 48. f5 {[%clk 0:00:05]}  gxf5 {[%clk 0:00:01]} 49. Qf4+ {[%clk 0:00:03]}  Kg6 {[%clk 0:00:01]} 50. Qg5+ {[%clk 0:00:03]}  Kf7 {[%clk 0:00:02]} 51. Qxf5+ {[%clk 0:00:04]}  Ke7 {[%clk 0:00:03]} 52. Ng5 {[%clk 0:00:03]}  Qe3+ {[%clk 0:00:02]} 53. Kh1 {[%clk 0:00:03]}  Kd6 {[%clk 0:00:03]} 54. Ne4+ {[%clk 0:00:03]}  Ke7 {[%clk 0:00:02]} 55. Qxc5+ {[%clk 0:00:03]}  Kd8 {[%clk 0:00:03]} 56. Qf8+ {[%clk 0:00:03]}  Kc7 {[%clk 0:00:03]} 57. Qc5+ {[%clk 0:00:04]}  Kd8 {[%clk 0:00:04]} 58. Qf5 {[%clk 0:00:04]}  Re7 {[%clk 0:00:04]} 59. Ng3 {[%clk 0:00:03]}  Kc7 {[%clk 0:00:04]} 60. Qf6 {[%clk 0:00:03]}  Rd7 {[%clk 0:00:03]} 61. Qf5 {[%clk 0:00:03]}  Qc3 {[%clk 0:00:03]} 62. Qd3 {[%clk 0:00:03]}  Qc6+ {[%clk 0:00:03]} 63. Kg1 {[%clk 0:00:03]}  h5 {[%clk 0:00:04]} 64. c3 {[%clk 0:00:03]}  h4 {[%clk 0:00:04]} 65. Ne2 {[%clk 0:00:03]}  Rg7+ {[%clk 0:00:04]} 66. Kf2 {[%clk 0:00:03]}  Qg2+ {[%clk 0:00:04]} 67. Ke1 {[%clk 0:00:03]}  Re7 {[%clk 0:00:04]} 68. cxd4 {[%clk 0:00:03]}  Qxh2 {[%clk 0:00:04]} 69. Kd2 {[%clk 0:00:04]}  Kd8 {[%clk 0:00:05]} 70. Qf3 {[%clk 0:00:03]}  Qd6 {[%clk 0:00:05]} 71. Kd3 {[%clk 0:00:04]}  Qg6+ {[%clk 0:00:04]} 72. Kd2 {[%clk 0:00:04]}  Qh6+ {[%clk 0:00:04]} 73. Kc2 {[%clk 0:00:04]}  Qg6+ {[%clk 0:00:04]} 74. Kd2 {[%clk 0:00:03]}  Qh6+ {[%clk 0:00:05]} 75. Nf4 {[%clk 0:00:04]}  h3 {[%clk 0:00:05]} 76. Rh1 {[%clk 0:00:03]}  h2 {[%clk 0:00:05]} 77. Qg3 {[%clk 0:00:03]}  Rf7 {[%clk 0:00:05]} 78. Ke3 {[%clk 0:00:04]}  Re7+ {[%clk 0:00:05]} 79. Kf3 {[%clk 0:00:04]}  Qc6+ {[%clk 0:00:06]} 80. d5 {[%clk 0:00:03]}  Qc3+ {[%clk 0:00:06]} 81. Kg2 {[%clk 0:00:03]}  Qc2+ {[%clk 0:00:07]} 82. Kf3 {[%clk 0:00:02]}  Qe4+ {[%clk 0:00:07]} 83. Kg4 {[%clk 0:00:02]}  Qxh1 {[%clk 0:00:08]} 84. Ne6+ {[%clk 0:00:02]}  Rxe6 {[%clk 0:00:08]} 85. Qb8+ {[%clk 0:00:03]}  Ke7 {[%clk 0:00:08]} 86. Qc7+ {[%clk 0:00:03]}  Kf6 {[%clk 0:00:08]} 87. Qf4+ {[%clk 0:00:03]}  Kg7 {[%clk 0:00:08]} 88. Qc7+ {[%clk 0:00:03]}  Kg6 {[%clk 0:00:08]} 89. dxe6 {[%clk 0:00:03]}  Qe4+ {[%clk 0:00:08]} 90. Kg3 {[%clk 0:00:03]}  h1=Q {[%clk 0:00:08]} 91. Qf7+ {[%clk 0:00:03]}  Kg5 {[%clk 0:00:08]} 92. Qe7+ {[%clk 0:00:02]}  Kf5 {[%clk 0:00:08]} 93. Qf7+ {[%clk 0:00:03]}  Ke5 {[%clk 0:00:09]} 94. Qg7+ {[%clk 0:00:02]}  Kxe6 {[%clk 0:00:09]} 95. Qg8+ {[%clk 0:00:02]}  Ke5 {[%clk 0:00:09]} 96. Qg7+ {[%clk 0:00:03]}  Kd5 {[%clk 0:00:09]} 97. Qb7+ {[%clk 0:00:02]}  Kd4 {[%clk 0:00:10]} 98. Qb4+ {[%clk 0:00:03]}  Kd3 {[%clk 0:00:10]} 99. Qb3+ {[%clk 0:00:03]}  Kd2 {[%clk 0:00:10]} 100. Qb2+ {[%clk 0:00:03]}  Kd1 {[%clk 0:00:11]} 101. Qa1+ {[%clk 0:00:03]}  Kc2 {[%clk 0:00:11]} 102. Qa2+ {[%clk 0:00:00]}  Kc3 {[%clk 0:00:12]} 0-1


[Site "https://www.chess.com"]

[Event "Titled Tuesday Blitz July 25 Late 2023"]
[White "Nguyen, Ngoc Truong Son"]
[Black "Kevlishvili, Robby"]
[WhiteFideId "12401110"]
[BlackFideId "1040634"]
[WhiteElo "2881"]
[BlackElo "3015"]
[Result "1-0"]
[Round "9"]
[TimeControl "180+2"]
[Date "2023.07.25"]
[WhiteClock "0:00:25"]
[BlackClock "0:00:01"]
[Board "9"]

1. d4 {[%clk 0:03:00]}  d5 {[%clk 0:02:58]} 2. c4 {[%clk 0:03:00]}  e6 {[%clk 0:02:59]} 3. Nc3 {[%clk 0:03:00]}  a6 {[%clk 0:02:59]} 4. cxd5 {[%clk 0:02:59]}  exd5 {[%clk 0:03:00]} 5. Bf4 {[%clk 0:02:59]}  c6 {[%clk 0:03:00]} 6. e3 {[%clk 0:02:59]}  Bd6 {[%clk 0:03:00]} 7. Bg3 {[%clk 0:02:58]}  Ne7 {[%clk 0:03:00]} 8. Bd3 {[%clk 0:02:58]}  Nf5 {[%clk 0:02:56]} 9. Qc2 {[%clk 0:02:56]}  g6 {[%clk 0:02:50]} 10. O-O-O {[%clk 0:02:55]}  O-O {[%clk 0:02:47]} 11. Kb1 {[%clk 0:02:54]}  a5 {[%clk 0:02:47]} 12. Nf3 {[%clk 0:02:52]}  Na6 {[%clk 0:02:47]} 13. a3 {[%clk 0:02:50]}  b5 {[%clk 0:02:41]} 14. Ne2 {[%clk 0:02:47]}  Bd7 {[%clk 0:02:37]} 15. Bxd6 {[%clk 0:02:40]}  Nxd6 {[%clk 0:02:36]} 16. h4 {[%clk 0:02:40]}  b4 {[%clk 0:02:29]} 17. a4 {[%clk 0:02:10]}  b3 {[%clk 0:02:27]} 18. Qc3 {[%clk 0:01:54]}  Nb4 {[%clk 0:02:21]} 19. Ng3 {[%clk 0:01:49]}  Nxd3 {[%clk 0:02:16]} 20. Rxd3 {[%clk 0:01:42]}  Ne4 {[%clk 0:02:16]} 21. Qxb3 {[%clk 0:01:24]}  Nxg3 {[%clk 0:02:15]} 22. fxg3 {[%clk 0:01:25]}  Bf5 {[%clk 0:02:14]} 23. Ka2 {[%clk 0:01:24]}  Rb8 {[%clk 0:02:12]} 24. Qc3 {[%clk 0:01:23]}  Bxd3 {[%clk 0:02:10]} 25. Qxd3 {[%clk 0:01:24]}  Rb4 {[%clk 0:02:08]} 26. b3 {[%clk 0:01:22]}  Qd6 {[%clk 0:02:07]} 27. h5 {[%clk 0:01:19]}  Qxg3 {[%clk 0:02:03]} 28. Qc2 {[%clk 0:01:12]}  Rfb8 {[%clk 0:02:00]} 29. Rb1 {[%clk 0:01:04]}  Qg4 {[%clk 0:01:49]} 30. h6 {[%clk 0:00:58]}  f6 {[%clk 0:01:22]} 31. Rb2 {[%clk 0:00:56]}  Qe6 {[%clk 0:01:19]} 32. Qc5 {[%clk 0:00:52]}  g5 {[%clk 0:01:17]} 33. Qxa5 {[%clk 0:00:46]}  Qe7 {[%clk 0:00:35]} 34. Qc5 {[%clk 0:00:41]}  Qb7 {[%clk 0:00:28]} 35. Qc3 {[%clk 0:00:37]}  Kf7 {[%clk 0:00:23]} 36. Qc2 {[%clk 0:00:34]}  Kg8 {[%clk 0:00:19]} 37. Ne1 {[%clk 0:00:32]}  Qe7 {[%clk 0:00:16]} 38. Nd3 {[%clk 0:00:32]}  R4b6 {[%clk 0:00:15]} 39. Nc5 {[%clk 0:00:30]}  Re8 {[%clk 0:00:11]} 40. Qf5 {[%clk 0:00:30]}  Rd8 {[%clk 0:00:05]} 41. Rf2 {[%clk 0:00:30]}  Rbb8 {[%clk 0:00:02]} 42. Qxf6 {[%clk 0:00:25]}  Qxf6 {[%clk 0:00:02]} 43. Rxf6 {[%clk 0:00:26]}  Rf8 {[%clk 0:00:03]} 44. Rxc6 {[%clk 0:00:27]}  Rf2+ {[%clk 0:00:03]} 45. Ka3 {[%clk 0:00:27]}  Rxg2 {[%clk 0:00:04]} 46. Rc7 {[%clk 0:00:25]}  Rh2 {[%clk 0:00:03]} 47. Nd7 {[%clk 0:00:25]}  Rf8 {[%clk 0:00:01]} 48. Nxf8 {[%clk 0:00:25]}  Kxf8 {[%clk 0:00:02]} 49. Rxh7 {[%clk 0:00:25]}  g4 {[%clk 0:00:01]} 50. Rg7 {[%clk 0:00:25]} 1-0


[Site "https://www.chess.com"]

[Event "Titled Tuesday Blitz July 25 Late 2023"]
[White "Mahdavi, Reza"]
[Black "Kramnik, Vladimir"]
[WhiteFideId "12595926"]
[BlackFideId "4101588"]
[WhiteElo "2791"]
[BlackElo "2997"]
[Result "1-0"]
[Round "9"]
[TimeControl "180+2"]
[Date "2023.07.25"]
[WhiteClock "0:00:03"]
[BlackClock "0:00:00"]
[Board "16"]

1. e4 {[%clk 0:02:56]}  c5 {[%clk 0:02:59]} 2. Nf3 {[%clk 0:02:56]}  e6 {[%clk 0:03:00]} 3. d4 {[%clk 0:02:55]}  cxd4 {[%clk 0:02:59]} 4. Nxd4 {[%clk 0:02:56]}  Nf6 {[%clk 0:02:59]} 5. Nc3 {[%clk 0:02:57]}  Nc6 {[%clk 0:02:59]} 6. Ndb5 {[%clk 0:02:56]}  d6 {[%clk 0:02:58]} 7. Bf4 {[%clk 0:02:56]}  e5 {[%clk 0:02:59]} 8. Bg5 {[%clk 0:02:57]}  a6 {[%clk 0:02:59]} 9. Na3 {[%clk 0:02:58]}  b5 {[%clk 0:03:00]} 10. Nab1 {[%clk 0:02:58]}  Be7 {[%clk 0:02:58]} 11. Bxf6 {[%clk 0:02:59]}  Bxf6 {[%clk 0:02:58]} 12. a4 {[%clk 0:03:00]}  b4 {[%clk 0:02:57]} 13. Nd5 {[%clk 0:03:00]}  O-O {[%clk 0:02:57]} 14. Bc4 {[%clk 0:03:01]}  Bg5 {[%clk 0:02:56]} 15. Qd3 {[%clk 0:03:01]}  a5 {[%clk 0:02:51]} 16. c3 {[%clk 0:02:57]}  Be6 {[%clk 0:02:50]} 17. O-O {[%clk 0:02:56]}  h6 {[%clk 0:02:47]} 18. Nd2 {[%clk 0:02:56]}  bxc3 {[%clk 0:02:28]} 19. bxc3 {[%clk 0:02:42]}  Bxd2 {[%clk 0:02:28]} 20. Qxd2 {[%clk 0:02:43]}  Rc8 {[%clk 0:02:28]} 21. Ba6 {[%clk 0:02:32]}  Rb8 {[%clk 0:02:28]} 22. Rab1 {[%clk 0:02:30]}  Bxd5 {[%clk 0:02:18]} 23. Qxd5 {[%clk 0:02:11]}  Rb6 {[%clk 0:02:06]} 24. Bc4 {[%clk 0:01:50]}  Ne7 {[%clk 0:01:57]} 25. Qd3 {[%clk 0:01:50]}  Qc7 {[%clk 0:01:37]} 26. Rxb6 {[%clk 0:01:49]}  Qxb6 {[%clk 0:01:38]} 27. Rb1 {[%clk 0:01:50]}  Qc6 {[%clk 0:01:34]} 28. Bb3 {[%clk 0:01:30]}  Qc7 {[%clk 0:01:20]} 29. g3 {[%clk 0:01:26]}  Rb8 {[%clk 0:01:10]} 30. Qf3 {[%clk 0:01:20]}  d5 {[%clk 0:01:09]} 31. exd5 {[%clk 0:01:18]}  Nc8 {[%clk 0:00:56]} 32. Bc2 {[%clk 0:01:08]}  Rxb1+ {[%clk 0:00:53]} 33. Bxb1 {[%clk 0:01:09]}  Nd6 {[%clk 0:00:49]} 34. Qe3 {[%clk 0:01:09]}  Qb7 {[%clk 0:00:45]} 35. Ba2 {[%clk 0:00:54]}  e4 {[%clk 0:00:30]} 36. c4 {[%clk 0:00:52]}  Qb2 {[%clk 0:00:08]} 37. Bb3 {[%clk 0:00:25]}  Qb1+ {[%clk 0:00:06]} 38. Kg2 {[%clk 0:00:24]}  Nf5 {[%clk 0:00:06]} 39. Qc3 {[%clk 0:00:23]}  e3 {[%clk 0:00:03]} 40. fxe3 {[%clk 0:00:10]}  Qe4+ {[%clk 0:00:03]} 41. Kf2 {[%clk 0:00:11]}  Qh1 {[%clk 0:00:04]} 42. e4 {[%clk 0:00:06]}  Qxh2+ {[%clk 0:00:04]} 43. Ke1 {[%clk 0:00:07]}  Nxg3 {[%clk 0:00:03]} 44. Qf3 {[%clk 0:00:07]}  Qg1+ {[%clk 0:00:03]} 45. Kd2 {[%clk 0:00:06]}  Nf1+ {[%clk 0:00:00]} 46. Ke2 {[%clk 0:00:03]} 1-0


[Site "https://www.chess.com"]

[Event "Titled Tuesday Blitz July 25 Late 2023"]
[White "Elsa167"]
[Black "Santos Latasa, Jaime"]
[BlackFideId "2293307"]
[WhiteElo "2774"]
[BlackElo "2994"]
[Result "1-0"]
[Round "9"]
[TimeControl "180+2"]
[Date "2023.07.25"]
[WhiteClock "0:01:05"]
[BlackClock "0:01:17"]
[Board "17"]

1. d4 {[%clk 0:03:00]}  Nf6 {[%clk 0:02:59]} 2. c4 {[%clk 0:03:01]}  e6 {[%clk 0:02:59]} 3. Nf3 {[%clk 0:03:00]}  d5 {[%clk 0:02:59]} 4. Nc3 {[%clk 0:03:01]}  dxc4 {[%clk 0:02:55]} 5. Bg5 {[%clk 0:02:51]}  a6 {[%clk 0:02:54]} 6. a4 {[%clk 0:02:30]}  Bb4 {[%clk 0:02:52]} 7. e3 {[%clk 0:02:29]}  Qd5 {[%clk 0:02:24]} 8. Bxf6 {[%clk 0:02:21]}  gxf6 {[%clk 0:02:25]} 9. Nd2 {[%clk 0:02:22]}  Bxc3 {[%clk 0:02:24]} 10. bxc3 {[%clk 0:02:22]}  b5 {[%clk 0:02:24]} 11. Be2 {[%clk 0:02:06]}  Qd7 {[%clk 0:02:15]} 12. axb5 {[%clk 0:02:04]}  Qxb5 {[%clk 0:02:16]} 13. Nxc4 {[%clk 0:01:58]}  Ke7 {[%clk 0:02:06]} 14. Qc1 {[%clk 0:01:48]}  Nd7 {[%clk 0:02:04]} 15. Qa3+ {[%clk 0:01:47]}  c5 {[%clk 0:02:04]} 16. O-O {[%clk 0:01:42]}  Bb7 {[%clk 0:01:56]} 17. Rfb1 {[%clk 0:01:33]}  Bd5 {[%clk 0:01:27]} 18. Rxb5 {[%clk 0:01:20]}  axb5 {[%clk 0:01:28]} 19. Na5 {[%clk 0:01:20]}  Rhb8 {[%clk 0:01:22]} 20. dxc5 {[%clk 0:01:19]}  Ne5 {[%clk 0:01:22]} 21. c6+ {[%clk 0:01:08]}  Ke8 {[%clk 0:01:17]} 22. Qb2 {[%clk 0:01:05]} 1-0


[Site "https://www.chess.com"]

[Event "Titled Tuesday Blitz July 25 Late 2023"]
[White "He, Anthony"]
[Black "Gubajdullin, Alexei"]
[WhiteFideId "2088215"]
[BlackFideId "4141202"]
[WhiteElo "2979"]
[BlackElo "2695"]
[Result "1-0"]
[Round "9"]
[TimeControl "180+2"]
[Date "2023.07.25"]
[WhiteClock "0:01:42"]
[BlackClock "0:00:04"]
[Board "18"]

1. d4 {[%clk 0:02:59]}  Nf6 {[%clk 0:02:29]} 2. Nc3 {[%clk 0:02:58]}  g6 {[%clk 0:02:28]} 3. Bf4 {[%clk 0:02:58]}  Bg7 {[%clk 0:02:27]} 4. e4 {[%clk 0:02:56]}  O-O {[%clk 0:02:26]} 5. h4 {[%clk 0:02:54]}  h5 {[%clk 0:02:23]} 6. e5 {[%clk 0:02:54]}  Nh7 {[%clk 0:02:20]} 7. Bc4 {[%clk 0:02:53]}  c6 {[%clk 0:02:17]} 8. Nf3 {[%clk 0:02:47]}  d5 {[%clk 0:02:16]} 9. Bd3 {[%clk 0:02:43]}  Bg4 {[%clk 0:02:15]} 10. Qd2 {[%clk 0:02:43]}  e6 {[%clk 0:02:13]} 11. Ng5 {[%clk 0:02:42]}  c5 {[%clk 0:02:10]} 12. f3 {[%clk 0:02:32]}  Bf5 {[%clk 0:02:08]} 13. Bxf5 {[%clk 0:02:32]}  exf5 {[%clk 0:02:06]} 14. dxc5 {[%clk 0:02:31]}  d4 {[%clk 0:02:06]} 15. Nb5 {[%clk 0:02:29]}  Nc6 {[%clk 0:02:06]} 16. O-O-O {[%clk 0:02:29]}  Nxe5 {[%clk 0:02:05]} 17. Nxd4 {[%clk 0:02:26]}  Nc4 {[%clk 0:02:03]} 18. Qc3 {[%clk 0:02:25]}  Qd5 {[%clk 0:02:01]} 19. b3 {[%clk 0:02:06]}  Na3 {[%clk 0:01:35]} 20. Qb4 {[%clk 0:02:02]}  Rfc8 {[%clk 0:01:34]} 21. Nde6 {[%clk 0:01:55]}  Qc6 {[%clk 0:01:18]} 22. Nxg7 {[%clk 0:01:55]}  Qxc5 {[%clk 0:01:18]} 23. Rd8+ {[%clk 0:01:53]}  Kxg7 {[%clk 0:01:16]} 24. Qxc5 {[%clk 0:01:50]}  Rxc5 {[%clk 0:01:16]} 25. Rxa8 {[%clk 0:01:51]}  Rxc2+ {[%clk 0:01:15]} 26. Kd1 {[%clk 0:01:51]}  Rxa2 {[%clk 0:01:14]} 27. Re1 {[%clk 0:01:43]}  Nb5 {[%clk 0:00:47]} 28. Re7 {[%clk 0:01:42]}  Nxg5 {[%clk 0:00:42]} 29. hxg5 {[%clk 0:01:43]}  Nc3+ {[%clk 0:00:26]} 30. Ke1 {[%clk 0:01:43]}  Ra1+ {[%clk 0:00:20]} 31. Kd2 {[%clk 0:01:42]}  Nb1+ {[%clk 0:00:16]} 32. Kc2 {[%clk 0:01:42]}  Ra5 {[%clk 0:00:04]} 33. Kxb1 {[%clk 0:01:42]} 1-0


[Site "https://www.chess.com"]

[Event "Titled Tuesday Blitz July 25 Late 2023"]
[White "Miladinovic, Igor"]
[Black "Svane, Rasmus"]
[WhiteFideId "4203380"]
[BlackFideId "4657101"]
[WhiteElo "2818"]
[BlackElo "2959"]
[Result "0-1"]
[Round "9"]
[TimeControl "180+2"]
[Date "2023.07.25"]
[WhiteClock "0:00:08"]
[BlackClock "0:00:04"]
[Board "20"]

1. d4 {[%clk 0:03:00]}  d5 {[%clk 0:03:00]} 2. Bf4 {[%clk 0:02:59]}  e6 {[%clk 0:02:55]} 3. e3 {[%clk 0:02:59]}  Bd6 {[%clk 0:02:56]} 4. Bg3 {[%clk 0:02:56]}  Nf6 {[%clk 0:02:54]} 5. Nd2 {[%clk 0:02:56]}  O-O {[%clk 0:02:54]} 6. Bd3 {[%clk 0:02:56]}  c5 {[%clk 0:02:55]} 7. dxc5 {[%clk 0:02:55]}  Bxc5 {[%clk 0:02:56]} 8. Ngf3 {[%clk 0:02:55]}  Qb6 {[%clk 0:02:43]} 9. Rb1 {[%clk 0:02:44]}  Nbd7 {[%clk 0:02:43]} 10. O-O {[%clk 0:02:34]}  Bd6 {[%clk 0:02:43]} 11. c4 {[%clk 0:02:32]}  Bxg3 {[%clk 0:02:39]} 12. hxg3 {[%clk 0:02:33]}  Nc5 {[%clk 0:02:38]} 13. Bc2 {[%clk 0:02:29]}  a5 {[%clk 0:02:35]} 14. cxd5 {[%clk 0:02:12]}  exd5 {[%clk 0:02:36]} 15. Nb3 {[%clk 0:02:01]}  Nxb3 {[%clk 0:02:02]} 16. Bxb3 {[%clk 0:02:01]}  Bf5 {[%clk 0:01:58]} 17. Rc1 {[%clk 0:01:57]}  Rfc8 {[%clk 0:01:47]} 18. Qd4 {[%clk 0:01:57]}  Qxd4 {[%clk 0:01:42]} 19. Nxd4 {[%clk 0:01:58]}  Bd7 {[%clk 0:01:42]} 20. f3 {[%clk 0:01:48]}  h5 {[%clk 0:01:42]} 21. a3 {[%clk 0:01:46]}  Kf8 {[%clk 0:01:41]} 22. Kf2 {[%clk 0:01:46]}  Ke7 {[%clk 0:01:41]} 23. Ke2 {[%clk 0:01:45]}  Kd6 {[%clk 0:01:36]} 24. Kd2 {[%clk 0:01:44]}  g6 {[%clk 0:01:33]} 25. Bc2 {[%clk 0:01:40]}  Rc5 {[%clk 0:01:07]} 26. Bd3 {[%clk 0:01:39]}  Rxc1 {[%clk 0:01:04]} 27. Rxc1 {[%clk 0:01:38]}  Rc8 {[%clk 0:01:00]} 28. Rb1 {[%clk 0:01:34]}  b6 {[%clk 0:00:56]} 29. b4 {[%clk 0:01:33]}  axb4 {[%clk 0:00:55]} 30. Rxb4 {[%clk 0:01:32]}  Kc7 {[%clk 0:00:53]} 31. Bb5 {[%clk 0:01:18]}  Ra8 {[%clk 0:00:50]} 32. a4 {[%clk 0:01:17]}  Bxb5 {[%clk 0:00:48]} 33. Nxb5+ {[%clk 0:01:17]}  Kc6 {[%clk 0:00:48]} 34. Rf4 {[%clk 0:01:18]}  Nd7 {[%clk 0:00:44]} 35. Nd4+ {[%clk 0:01:02]}  Kd6 {[%clk 0:00:42]} 36. Nb5+ {[%clk 0:01:02]}  Ke7 {[%clk 0:00:37]} 37. Rd4 {[%clk 0:00:58]}  Nf6 {[%clk 0:00:36]} 38. Rb4 {[%clk 0:00:52]}  Rc8 {[%clk 0:00:31]} 39. Nc3 {[%clk 0:00:51]}  Rc6 {[%clk 0:00:31]} 40. Rb5 {[%clk 0:00:50]}  Kd6 {[%clk 0:00:31]} 41. Kd3 {[%clk 0:00:49]}  Ke6 {[%clk 0:00:26]} 42. Ke2 {[%clk 0:00:49]}  Kd6 {[%clk 0:00:26]} 43. Kd3 {[%clk 0:00:49]}  Ke6 {[%clk 0:00:27]} 44. Ne2 {[%clk 0:00:49]}  Rd6 {[%clk 0:00:23]} 45. Nf4+ {[%clk 0:00:48]}  Kd7 {[%clk 0:00:22]} 46. Kd4 {[%clk 0:00:47]}  Kc6 {[%clk 0:00:20]} 47. Rb1 {[%clk 0:00:47]}  Nd7 {[%clk 0:00:18]} 48. Nd3 {[%clk 0:00:43]}  Kc7 {[%clk 0:00:15]} 49. Rc1+ {[%clk 0:00:35]}  Kd8 {[%clk 0:00:13]} 50. Rb1 {[%clk 0:00:30]}  Kc7 {[%clk 0:00:13]} 51. Rb5 {[%clk 0:00:30]}  Rc6 {[%clk 0:00:06]} 52. Rxd5 {[%clk 0:00:17]}  Rc2 {[%clk 0:00:05]} 53. Nf4 {[%clk 0:00:13]}  Nc5 {[%clk 0:00:03]} 54. Re5 {[%clk 0:00:11]}  Kd6 {[%clk 0:00:03]} 55. Rd5+ {[%clk 0:00:11]}  Kc6 {[%clk 0:00:04]} 56. Rg5 {[%clk 0:00:10]}  Ra2 {[%clk 0:00:04]} 57. Nd5 {[%clk 0:00:09]}  Rxa4+ {[%clk 0:00:04]} 58. Ke5 {[%clk 0:00:08]}  Nd7# {[%clk 0:00:04]} 0-1


[Site "https://www.chess.com"]

[Event "Titled Tuesday Blitz July 25 Late 2023"]
[White "Jaracz, Pawel"]
[Black "Kochiev, Ivan"]
[WhiteFideId "1102222"]
[BlackFideId "2917890"]
[WhiteElo "2722"]
[BlackElo "2568"]
[Result "1-0"]
[Round "9"]
[TimeControl "180+2"]
[Date "2023.07.25"]
[WhiteClock "0:00:08"]
[BlackClock "0:00:01"]
[Board "21"]

1. e4 {[%clk 0:02:56]}  c5 {[%clk 0:02:56]} 2. Nf3 {[%clk 0:02:56]}  d6 {[%clk 0:02:56]} 3. d4 {[%clk 0:02:56]}  cxd4 {[%clk 0:02:57]} 4. Nxd4 {[%clk 0:02:57]}  Nf6 {[%clk 0:02:58]} 5. Nc3 {[%clk 0:02:57]}  Nc6 {[%clk 0:02:58]} 6. Bc4 {[%clk 0:02:55]}  e6 {[%clk 0:02:58]} 7. Be3 {[%clk 0:02:54]}  a6 {[%clk 0:02:58]} 8. Bb3 {[%clk 0:02:54]}  Qc7 {[%clk 0:02:58]} 9. Qe2 {[%clk 0:02:47]}  b5 {[%clk 0:02:55]} 10. O-O-O {[%clk 0:02:47]}  Bb7 {[%clk 0:02:55]} 11. f3 {[%clk 0:02:16]}  Be7 {[%clk 0:02:47]} 12. g4 {[%clk 0:02:15]}  Ne5 {[%clk 0:02:29]} 13. Bxe6 {[%clk 0:02:07]}  fxe6 {[%clk 0:02:25]} 14. Nxe6 {[%clk 0:02:07]}  Qa5 {[%clk 0:02:22]} 15. Nxg7+ {[%clk 0:02:04]}  Kf7 {[%clk 0:02:05]} 16. Nf5 {[%clk 0:02:04]}  Rac8 {[%clk 0:01:42]} 17. Bd4 {[%clk 0:01:22]}  b4 {[%clk 0:01:22]} 18. Nb1 {[%clk 0:01:22]}  Qxa2 {[%clk 0:00:58]} 19. Nxe7 {[%clk 0:01:22]}  Kxe7 {[%clk 0:00:49]} 20. g5 {[%clk 0:01:22]}  Nh5 {[%clk 0:00:35]} 21. Qd2 {[%clk 0:01:17]}  Nxf3 {[%clk 0:00:12]} 22. Qxb4 {[%clk 0:01:16]}  Bxe4 {[%clk 0:00:08]} 23. Bc3 {[%clk 0:01:05]}  Qe6 {[%clk 0:00:03]} 24. Rhe1 {[%clk 0:00:57]}  Rc4 {[%clk 0:00:03]} 25. Rxe4 {[%clk 0:00:45]}  Qxe4 {[%clk 0:00:03]} 26. Qxd6+ {[%clk 0:00:44]}  Kf7 {[%clk 0:00:03]} 27. Qd7+ {[%clk 0:00:40]}  Kg6 {[%clk 0:00:03]} 28. Rd6+ {[%clk 0:00:39]}  Kxg5 {[%clk 0:00:03]} 29. Rd5+ {[%clk 0:00:20]}  Kh4 {[%clk 0:00:03]} 30. Rd3 {[%clk 0:00:14]}  Re8 {[%clk 0:00:03]} 31. b3 {[%clk 0:00:14]}  Rc6 {[%clk 0:00:02]} 32. Kb2 {[%clk 0:00:12]}  Rg6 {[%clk 0:00:02]} 33. Nd2 {[%clk 0:00:09]}  Nxd2 {[%clk 0:00:03]} 34. Rd4 {[%clk 0:00:09]}  Nc4+ {[%clk 0:00:02]} 35. bxc4 {[%clk 0:00:08]}  Nf6 {[%clk 0:00:02]} 36. Rxe4+ {[%clk 0:00:07]}  Rxe4 {[%clk 0:00:02]} 37. Bxf6+ {[%clk 0:00:07]}  Rxf6 {[%clk 0:00:02]} 38. Qxh7+ {[%clk 0:00:07]}  Kg4 {[%clk 0:00:01]} 39. Qxe4+ {[%clk 0:00:08]} 1-0


[Site "https://www.chess.com"]